bitfinex-derivatives/quotes_ETHF0:USTF0_20250904
["timestamp","ask_amount","ask_price","bid_price","bid_amount"]
[1756993204517,0.41086,4380.1,4379.5,0.516]
[1756993204726,1.3326,4381.0,4379.6,1.345]
[1756993204727,3.2078,4379.7,4379.6,1.345]
[1756993205022,0.41095,4379.1,4379.0,1.861]
[1756993205317,1.74358,4378.8,4378.7,0.26]
[1756993205512,3.2078,4379.2,4378.7,0.26]
[1756993205713,3.2078,4379.2,4378.9,1.345]
[1756993206017,3.2078,4379.2,4378.8,0.516]
[1756993206217,3.2078,4379.2,4378.9,1.345]
[1756993206715,1.3326,4379.1,4378.3,1.345]
[1756993206919,3.2078,4379.0,4378.3,2.01902]
[1756993207121,0.5371,4380.5,4378.9,1.345]
[1756993207122,3.2078,4379.5,4378.9,1.345]
[1756993207319,3.2078,4380.0,4379.5,1.345]
[1756993207619,3.2078,4380.5,4379.6,0.263]
[1756993207827,0.52484,4381.4,4380.4,1.345]
[1756993208122,0.41079,4380.8,4380.7,1.345]
[1756993208324,0.1141,4381.4,4380.7,1.608]
[1756993208526,0.1141,4381.4,4380.8,1.345]
[1756993208726,0.41083,4380.3,4380.2,3.2078]
[1756993208917,0.41083,4380.4,4380.3,1.345]
[1756993209221,0.41075,4381.3,4380.7,1.345]
[1756993209424,4.23457,4381.7,4380.6,0.516]
[1756993209625,0.41079,4380.9,4380.7,0.264]
[1756993209927,4.5404,4381.7,4380.8,1.345]
[1756993210120,1.3326,4380.5,4379.3,1.345]
[1756993210418,0.41094,4379.3,4379.2,1.345]
[1756993210819,3.2078,4380.8,4379.5,1.345]
[1756993211027,0.41086,4380.1,4379.8,1.345]
[1756993211227,0.41086,4380.1,4380.0,1.861]
[1756993211424,0.41086,4380.1,4379.4,0.516]
[1756993211425,0.5068,4377.6,4376.3,1.50637942]
[1756993211623,1.3326,4376.7,4374.5,3.2078]
[1756993211824,3.2078,4376.6,4375.2,3.2078]
[1756993212123,0.264,4377.5,4375.0,25.795]
[1756993212124,3.2078,4377.2,4376.5,3.484]
[1756993212315,1.3326,4378.0,4375.7,3.7238]
[1756993212316,1.3326,4378.0,4377.3,3.484]
[1756993212520,3.7146,4378.2,4377.9,3.484]
[1756993212718,1.5451,4378.1,4377.8,0.281]
[1756993212923,4.7529,4378.8,4378.5,3.484]
[1756993213124,3.2078,4378.8,4378.7,3.484]
[1756993213424,1.5451,4378.7,4377.7,3.2078]
[1756993213617,3.2078,4378.3,4377.0,3.2078]
[1756993213825,3.2078,4378.3,4377.9,3.484]
[1756993214023,1.5451,4378.2,4377.9,3.484]
[1756993214224,4.7529,4378.3,4377.9,3.484]
[1756993214420,3.2078,4378.8,4378.2,3.484]
[1756993214628,3.2078,4378.8,4377.9,0.281]
[1756993214821,1.5451,4378.7,4378.1,3.484]
[1756993215018,3.2078,4378.8,4377.9,0.281]
[1756993215418,3.2078,4378.8,4378.5,3.484]
[1756993215624,1.5451,4378.7,4378.5,3.766]
[1756993215821,1.5451,4378.7,4377.6,3.2475521]
[1756993216020,1.5451,4378.7,4378.0,3.484]
[1756993216327,3.2078,4378.8,4377.9,0.281]
[1756993216624,3.2078,4378.8,4378.7,3.484]
[1756993216829,1.5451,4379.3,4378.7,3.765]
[1756993217129,1.2689,4380.2,4379.2,7.84860782]
[1756993217327,1.2689,4380.2,4379.3,1.7588]
[1756993217523,3.2078,4380.6,4379.9,0.534]
[1756993217728,0.5901,4382.0,4380.5,4.111]
[1756993218027,3.2078,4382.8,4380.0,4.281]
[1756993218028,3.2078,4383.3,4381.4,0.7891]
[1756993218350,3.2078,4383.8,4382.6,7.84860782]
[1756993218524,3.2078,4383.8,4382.7,0.281]
[1756993218719,3.2078,4383.8,4382.1,3.2078]
[1756993218937,0.41065,4382.3,4382.2,0.281]
[1756993219228,0.4107,4381.8,4381.6,3.2078]
[1756993219428,1.5451,4381.7,4381.6,3.4888]
[1756993219623,0.4107,4381.8,4381.6,3.2078]
[1756993219828,1.5451,4381.7,4381.6,3.2078]
[1756993220330,1.5451,4381.7,4380.9,31.504]
[1756993220331,0.41077,4381.0,4380.9,34.7118]
[1756993220537,1.95587,4381.0,4380.9,34.7118]
[1756993220730,1.95587,4381.0,4380.9,34.9928]
[1756993220936,0.41077,4381.0,4380.9,34.9928]
[1756993221130,4.7529,4382.3,4380.9,38.9928]
[1756993221326,4.7529,4382.3,4381.4,4.64080782]
[1756993221635,0.41075,4381.3,4380.9,34.7118]
[1756993221836,1.02668,4382.1,4380.9,34.7118]
[1756993222129,1.5451,4382.3,4381.1,0.7891]
[1756993222334,0.41066,4382.2,4381.3,3.2078]
[1756993222534,0.41062,4382.6,4381.8,3.2078]
[1756993222738,0.41064,4382.5,4382.3,3.2078]
[1756993223032,1.95574,4382.5,4382.4,0.281]
[1756993223335,1.02649,4383.0,4382.3,0.281]
[1756993223336,2.1352,4382.4,4382.3,0.281]
[1756993223833,6.1352,4382.4,4382.3,0.281]
[1756993224032,1.5451,4382.2,4381.8,0.28]
[1756993224235,0.5901,4381.6,4381.4,0.28]
[1756993224436,1.5451,4381.5,4381.2,0.28]
[1756993224733,1.5451,4382.0,4381.2,0.28]
[1756993225134,1.5451,4382.0,4381.3,0.28]
[1756993225135,1.5451,4381.9,4381.3,0.28]
[1756993226234,1.5451,4381.9,4381.3,3.4878]
[1756993226428,0.5901,4382.4,4381.3,3.4878]
[1756993226623,1.5451,4382.3,4381.8,3.2078]
[1756993226832,3.2078,4382.7,4381.9,0.279]
[1756993227237,0.5901,4384.0,4381.9,0.279]
[1756993227238,3.2078,4383.2,4381.9,0.279]
[1756993227535,1.5451,4383.8,4383.0,3.2078]
[1756993227735,1.5451,4383.8,4383.1,0.279]
[1756993228128,1.5451,4383.8,4383.5,3.2078]
[1756993228327,3.2078,4384.7,4383.6,0.279]
[1756993228328,1.5451,4384.4,4383.6,0.279]
[1756993229532,0.5901,4384.1,4382.5,3.2078]
[1756993229837,0.5901,4384.1,4380.9,36.68266114]
[1756993229838,1.5451,4383.3,4381.2,3.2078]
[1756993230134,1.5451,4383.0,4381.9,3.2078]
[1756993230341,4.7529,4383.7,4382.4,3.2078]
[1756993230643,4.7529,4383.7,4382.5,0.279]
[1756993230842,3.2078,4383.7,4382.4,3.2078]
[1756993231135,1.5451,4383.1,4381.9,3.2078]
[1756993231341,0.5901,4383.4,4380.9,31.504]
[1756993231342,3.7979,4382.7,4381.2,3.2078]
[1756993231541,1.5451,4382.6,4381.3,0.278]
[1756993233530,3.2078,4382.2,4380.9,31.504]
[1756993233738,3.2078,4381.7,4380.5,3.2078]
[1756993233938,0.278,4381.6,4380.0,3.4858]
[1756993234137,1.5451,4381.5,4380.0,3.4858]
[1756993234341,0.278,4381.6,4380.0,3.4858]
[1756993234840,3.2078,4381.7,4380.0,3.4858]
[1756993235045,0.278,4381.6,4380.0,3.4858]
[1756993235345,1.5451,4381.5,4380.1,0.7884]
[1756993235642,3.2078,4381.7,4381.0,3.2078]
[1756993235843,3.2078,4381.7,4381.1,0.277]
[1756993236151,2.1352,4382.7,4381.6,3.2078]
[1756993236349,2.1352,4382.7,4381.3,0.7884]
[1756993236350,1.5451,4382.6,4382.2,3.2078]
[1756993236646,1.5451,4383.3,4382.3,0.277]
[1756993237048,3.2078,4384.0,4382.9,0.7884]
[1756993237342,3.2078,4384.0,4383.0,0.277]
[1756993238336,3.2078,4384.0,4382.8,3.2078]
[1756993238538,1.5451,4383.3,4382.7,0.277]
[1756993238944,1.5451,4383.3,4382.1,3.2078]
[1756993239145,1.5451,4383.3,4382.2,0.277]
[1756993239843,1.5451,4383.3,4382.3,0.276]
[1756993240341,1.5451,4383.3,4382.1,3.2078]
[1756993240546,3.2078,4383.0,4382.2,0.276]
[1756993240859,1.5451,4382.9,4382.2,0.276]
[1756993241347,1.5451,4382.9,4382.2,3.4838]
[1756993242647,0.626,4382.4,4381.7,3.2078]
[1756993243043,2.0507,4381.8,4381.2,0.275]
[1756993243639,1.4247,4381.6,4380.6,3.2078]
[1756993243947,1.4247,4381.1,4380.0,0.275]
[1756993244745,3.2078,4380.2,4379.3,3.2078]
[1756993244939,3.2078,4380.2,4377.1,0.6023]
[1756993244940,1.4247,4379.5,4377.6,0.276]
[1756993245143,3.2078,4378.6,4377.8,0.6023]
[1756993245350,3.2078,4378.6,4377.9,1.5321]
[1756993245843,3.2078,4378.6,4377.3,0.03975221]
[1756993246141,3.2078,4378.1,4377.4,0.276]
[1756993246744,3.2078,4378.1,4377.5,0.276]
[1756993247049,3.2078,4378.1,4377.6,0.276]
[1756993247552,3.2078,4378.1,4377.7,1.5321]
[1756993247749,3.2078,4378.1,4376.2,1.5321]
[1756993247750,0.626,4377.8,4376.2,1.5321]
[1756993248049,1.4247,4377.3,4376.3,3.2078]
[1756993248246,1.4247,4377.3,4376.3,3.4838]
[1756993248450,3.2078,4377.4,4376.5,1.57186332]
[1756993248839,1.4247,4378.0,4377.1,1.5321]
[1756993249039,1.4247,4378.0,4377.0,3.2078]
[1756993249040,3.2078,4378.6,4377.2,0.277]
[1756993249247,3.2078,4378.6,4377.5,3.2078]
[1756993249842,3.2078,4378.6,4377.6,1.5321]
[1756993250049,1.4247,4379.4,4378.2,1.5321]
[1756993250050,3.2078,4379.1,4378.2,1.5321]
[1756993250244,3.2078,4378.6,4377.0,3.2078]
[1756993250443,5.15494804,4378.9,4377.0,3.2078]
[1756993250444,1.4247,4377.9,4377.0,3.2078]
[1756993250645,3.2078,4377.5,4377.0,0.277]
[1756993250852,3.2078,4378.0,4377.1,5.3422]
[1756993251147,3.2078,4378.0,4377.2,1.5321]
[1756993251347,3.2078,4378.8,4377.7,1.5321]
[1756993251559,3.2078,4378.8,4377.9,1.5321]
[1756993251851,3.2078,4378.8,4377.8,0.8498]
[1756993252041,3.2078,4378.8,4377.8,0.2475]
[1756993252241,3.2078,4378.8,4378.2,3.2078]
[1756993252447,3.2078,4378.8,4378.3,0.277]
[1756993252649,4.6325,4378.8,4378.3,0.277]
[1756993252847,3.2078,4378.8,4378.3,0.277]
[1756993253050,3.2078,4379.5,4378.3,0.277]
[1756993253244,4.6325,4380.0,4378.7,3.2078]
[1756993253451,1.0272,4379.8,4378.8,0.276]
[1756993253644,0.41096,4379.0,4378.8,0.276]
[1756993253953,0.41092,4379.3,4378.9,1.5321]
[1756993254155,0.41092,4379.3,4379.2,4.7399]
[1756993254455,0.41092,4379.3,4379.2,3.2078]
[1756993254653,0.41092,4379.3,4379.2,8.7399]
[1756993254848,0.41092,4379.3,4379.2,4.7399]
[1756993255054,0.41092,4379.3,4379.2,3.9319]
[1756993255256,0.41092,4379.3,4379.2,4.2079]
[1756993255654,1.83562,4379.3,4379.2,0.276]
[1756993256056,0.41092,4379.3,4379.2,0.276]
[1756993256251,0.41092,4379.4,4379.3,1.5321]
[1756993257055,0.1141,4379.7,4379.3,1.5321]
[1756993257260,0.41084,4380.2,4379.6,3.2078]
[1756993257562,0.41088,4379.8,4379.7,1.8071]
[1756993257765,0.41083,4380.3,4379.7,1.8071]
[1756993258058,0.41087,4379.9,4379.5,3.2078]
[1756993258254,0.41089,4379.8,4379.6,0.275]
[1756993258654,4.6325,4380.8,4379.6,0.275]
[1756993258862,4.6325,4380.8,4379.7,0.275]
[1756993259054,4.6325,4380.8,4379.7,0.68588]
[1756993259252,0.41085,4380.2,4380.0,3.2078]
[1756993259562,1.4247,4380.1,4380.0,3.2078]
[1756993259860,1.4247,4380.1,4380.0,0.274]
[1756993260050,1.83555,4380.1,4380.0,0.274]
[1756993260259,1.4247,4381.0,4380.0,3.4818]
[1756993260459,1.4247,4381.0,4380.0,3.2078]
[1756993260655,1.4247,4380.1,4380.0,3.2078]
[1756993260961,0.41084,4380.2,4380.0,3.4818]
[1756993261358,1.4247,4380.7,4380.0,4.3951]
[1756993261555,0.41083,4380.3,4380.0,3.4818]
[1756993261755,3.2078,4380.8,4380.1,0.274]
[1756993261959,3.2078,4380.8,4380.1,0.68484]
[1756993262159,0.626,4380.0,4379.9,3.2078]
[1756993262356,2.46156,4380.0,4379.9,0.274]
[1756993262661,1.4247,4380.6,4379.9,3.4818]
[1756993262965,0.41085,4380.1,4379.9,3.4818]
[1756993263259,0.41094,4379.1,4379.0,3.2078]
[1756993263461,1.4247,4379.8,4379.0,7.52910723]
[1756993263656,1.02705,4380.5,4379.0,7.52910723]
[1756993263657,1.7664,4380.0,4379.5,8.16740723]
[1756993263852,1.7664,4380.0,4379.0,0.275]
[1756993263853,1.83559,4379.7,4379.6,0.275]
[1756993264460,0.626,4379.4,4379.3,3.2078]
[1756993264761,0.626,4379.4,4378.5,3.2078]
[1756993264762,1.4247,4379.2,4378.5,3.2078]
[1756993264961,1.4247,4378.9,4378.5,3.2078]
[1756993265165,0.626,4378.8,4378.5,3.2078]
[1756993265457,1.4247,4378.7,4378.6,0.275]
[1756993265864,2.0507,4379.4,4378.6,0.275]
[1756993266357,2.0507,4379.4,4378.4,34.7138]
[1756993266554,2.0507,4379.4,4378.7,0.275]
[1756993266757,2.0507,4379.4,4378.9,0.41095]
[1756993266959,1.4247,4379.4,4379.0,3.4828]
[1756993267160,1.4247,4379.9,4379.1,0.275]
[1756993268059,1.4247,4379.9,4379.2,0.275]
[1756993268866,3.8338,4380.0,4379.3,0.274]
[1756993268867,1.4247,4379.8,4379.3,0.274]
[1756993269059,1.4247,4379.9,4379.3,0.274]
[1756993269661,1.4247,4379.9,4379.4,0.274]
[1756993270063,1.4247,4379.8,4379.4,0.274]
[1756993270258,3.8338,4380.0,4379.4,0.274]
[1756993271066,1.4247,4379.9,4379.4,0.274]
[1756993271267,3.8338,4380.0,4379.4,0.274]
[1756993271471,1.4247,4379.9,4379.4,0.274]
[1756993271670,5.2585,4380.0,4379.4,0.274]
[1756993272262,5.2585,4380.0,4379.0,3.2078]
[1756993272263,1.5281,4379.9,4379.5,0.273]
[1756993272558,3.2078,4380.5,4379.7,3.2078]
[1756993272762,3.2078,4380.5,4379.7,3.61868]
[1756993272763,4.7359,4380.5,4379.7,3.61868]
[1756993272958,4.7359,4380.5,4379.8,0.41087]
[1756993273162,4.7359,4380.5,4379.7,3.2078]
[1756993273360,1.5281,4380.4,4379.2,3.2078]
[1756993273564,1.5281,4379.9,4379.7,3.2078]
[1756993273871,1.5281,4379.9,4379.8,0.274]
[1756993274369,3.798,4380.0,4379.0,3.2078]
[1756993274668,1.5281,4379.4,4379.1,0.274]
[1756993274875,0.5902,4379.5,4378.4,31.506]
[1756993274876,2.1183,4378.5,4378.4,31.506]
[1756993275067,1.5281,4378.4,4376.2,2.83053786]
[1756993275260,4.7359,4377.0,4376.2,2.83053786]
[1756993275463,3.6314,4377.5,4376.3,0.274]
[1756993275965,3.2078,4377.0,4376.3,0.274]
[1756993276365,3.2078,4377.0,4376.4,1.527]
[1756993276665,3.2078,4377.0,4376.5,1.527]
[1756993277071,3.2078,4377.0,4376.4,0.6053]
[1756993277363,3.2078,4377.5,4376.4,0.6053]
[1756993277564,3.2078,4378.0,4376.9,1.527]
[1756993277764,4.7359,4377.5,4377.0,0.274]
[1756993277971,1.5281,4377.4,4377.0,0.274]
[1756993278271,3.2078,4377.5,4377.0,0.274]
[1756993278565,3.2078,4377.5,4377.2,1.527]
[1756993278767,3.2078,4378.3,4377.4,1.527]
[1756993278963,1.5281,4378.2,4377.5,0.273]
[1756993279362,3.2078,4378.3,4377.6,1.527]
[1756993279869,3.2078,4378.3,4377.6,2.1323]
[1756993280065,3.2078,4378.3,4377.6,0.6053]
[1756993280262,3.2078,4378.8,4377.9,1.527]
[1756993280467,1.5281,4378.7,4377.6,31.512]
[1756993280667,3.2078,4378.3,4377.7,0.273]
[1756993281069,3.2078,4378.3,4377.7,1.8]
[1756993281369,3.2078,4378.8,4378.0,1.527]
[1756993281572,3.2078,4378.8,4378.1,0.273]
[1756993281967,3.2078,4378.8,4378.2,2.1323]
[1756993282164,3.2078,4378.8,4378.2,0.6053]
[1756993282474,3.2078,4379.8,4379.1,1.527]
[1756993282767,3.2078,4380.2,4379.4,0.6053]
[1756993282973,3.2078,4380.2,4379.5,1.527]
[1756993283173,3.2078,4380.2,4379.2,31.786]
[1756993283974,1.5281,4379.9,4379.3,0.272]
[1756993284173,1.5281,4379.6,4379.3,0.272]
[1756993284374,3.2078,4379.7,4379.3,0.272]
[1756993284572,3.2078,4379.7,4379.4,0.6053]
[1756993284775,3.2078,4379.7,4379.5,1.527]
[1756993284975,1.5281,4379.6,4379.3,0.272]
[1756993285177,1.5281,4379.6,4379.4,0.272]
[1756993285369,1.5281,4379.6,4379.5,0.272]
[1756993286476,3.2078,4379.7,4379.5,0.272]
[1756993286671,4.7359,4379.7,4379.5,0.272]
[1756993286868,3.2078,4379.7,4379.5,1.799]
[1756993287171,3.2078,4379.7,4379.6,1.527]
[1756993287376,3.2078,4379.7,4379.5,0.272]
[1756993287880,2.5569,4379.5,4379.2,31.514]
[1756993288071,1.5281,4379.4,4379.3,0.271]
[1756993288378,1.0288,4379.5,4379.4,1.527]
[1756993288568,1.5281,4380.7,4379.8,1.93787]
[1756993288769,1.5281,4380.7,4380.3,4.04629027]
[1756993289077,0.5902,4380.5,4380.4,0.271]
[1756993289465,6.1183,4380.5,4379.3,3.2078]
[1756993289671,6.1183,4380.5,4378.2,0.6053]
[1756993289672,1.5281,4379.9,4378.8,3.2078]
[1756993289978,1.5281,4379.3,4378.7,4.04629027]
[1756993290278,1.5281,4379.3,4379.2,31.785]
[1756993290666,1.5281,4379.3,4379.2,31.514]
[1756993290877,1.5281,4379.3,4379.2,31.785]
[1756993291588,5.5281,4379.3,4379.2,28.355]
[1756993291873,5.5281,4379.3,4378.7,0.271]
[1756993292077,3.2078,4378.9,4378.8,0.271]
[1756993292273,3.2078,4378.9,4377.7,1.527]
[1756993292473,3.2078,4378.0,4377.8,0.27]
[1756993292674,3.2078,4378.0,4377.9,0.27]
[1756993293694,3.2078,4378.0,4375.2,3.2078]
[1756993293695,11.52409027,4378.0,4375.2,3.2078]
[1756993293875,3.2078,4376.2,4375.5,0.27]
[1756993294184,3.2078,4375.7,4375.6,0.224]
[1756993294479,3.2078,4375.7,4375.6,1.797]
[1756993295470,3.2078,4375.7,4375.6,1.527]
[1756993295677,3.2078,4376.3,4375.6,1.797]
[1756993295881,3.2078,4376.3,4376.0,1.527]
[1756993296075,3.2078,4376.3,4376.1,0.27]
[1756993296275,3.2078,4376.3,4376.2,1.797]
[1756993297279,3.2078,4376.3,4376.2,5.797]
[1756993298078,3.2078,4376.3,4375.9,1.527]
[1756993298286,3.2078,4376.3,4376.2,1.797]
[1756993298676,3.2078,4376.3,4376.2,5.84329027]
[1756993299075,8.794,4379.1,4376.2,5.84329027]
[1756993299076,3.2078,4377.0,4376.4,0.6053]
[1756993299277,3.2078,4377.0,4376.8,1.527]
[1756993299472,3.2078,4377.0,4376.9,0.269]
[1756993299678,3.2078,4377.0,4376.9,1.527]
[1756993299981,3.2078,4377.0,4376.9,1.796]
[1756993300284,3.2078,4377.5,4377.1,1.527]
[1756993300579,3.2078,4377.5,4377.3,1.527]
[1756993300779,3.2078,4377.5,4376.5,1.527]
[1756993300980,3.2078,4377.5,4377.0,0.6053]
[1756993301179,35.56629027,4380.2,4377.0,0.6053]
[1756993301180,3.2078,4378.2,4377.4,1.527]
[1756993301478,3.2078,4378.2,4377.8,1.527]
[1756993301679,3.2078,4378.2,4377.9,0.27]
[1756993302381,3.2078,4378.2,4377.6,0.6053]
[1756993302683,35.56629027,4380.2,4376.5,1.4755]
[1756993302684,3.2078,4377.7,4376.5,1.4755]
[1756993302881,7.25409027,4377.2,4376.4,0.269]
[1756993303083,3.2078,4376.5,4376.4,0.269]
[1756993304186,3.2078,4376.5,4376.4,1.7445]
[1756993305384,3.2078,4376.5,4376.4,1.4755]
[1756993305686,3.2078,4376.5,4376.4,0.269]
[1756993305887,0.5254,4376.4,4376.3,0.269]
[1756993306277,0.5254,4376.4,4376.3,1.7445]
[1756993306684,0.5254,4376.4,4375.8,0.578]
[1756993306884,0.5254,4376.4,4375.9,0.269]
[1756993307085,0.5254,4376.4,4375.2,0.578]
[1756993307086,0.5254,4376.4,4376.1,1.4755]
[1756993307381,0.5254,4376.4,4376.2,0.269]
[1756993308481,0.5254,4376.4,4375.6,1.4755]
[1756993308692,3.2078,4375.7,4375.6,1.4755]
[1756993308876,3.2078,4375.7,4375.6,1.7435]
[1756993309081,1.4392,4376.2,4375.6,1.7435]
[1756993309082,4.647,4376.2,4375.6,1.7435]
[1756993309282,4.647,4376.2,4375.6,1.4755]
[1756993309590,3.2078,4375.7,4375.6,0.268]
[1756993310084,3.2078,4375.7,4375.6,1.7435]
[1756993311291,3.2078,4375.7,4375.1,33.2635]
[1756993311492,3.2078,4375.7,4375.0,25.0]
[1756993311686,3.2078,4375.7,4375.0,25.578]
[1756993311893,3.2078,4375.2,4375.0,25.0]
[1756993312593,3.2078,4375.2,4375.0,26.4755]
[1756993312891,3.2078,4375.2,4375.0,25.0]
[1756993313687,3.2078,4375.2,4375.1,1.4755]
[1756993313889,3.2078,4375.2,4375.0,25.0]
[1756993315094,3.2078,4375.2,4375.1,1.4755]
[1756993315289,3.2078,4375.2,4375.0,20.7232]
[1756993315590,3.2078,4375.2,4375.0,22.4667]
[1756993315795,3.2078,4375.2,4375.1,1.4755]
[1756993316490,3.2078,4375.2,4375.0,20.9912]
[1756993316691,3.2078,4375.2,4375.1,1.4755]
[1756993317794,3.2078,4375.2,4375.1,0.7763]
[1756993319890,3.2078,4375.2,4375.0,20.9912]
[1756993320304,3.2078,4375.2,4375.1,1.4755]
[1756993320493,3.2078,4375.2,4375.0,20.9912]
[1756993320694,0.697,4375.1,4375.0,20.9902]
[1756993320897,4.964,4375.1,4375.0,20.0262]
[1756993321689,4.0,4375.1,4375.0,20.0262]
[1756993321895,3.4748,4375.2,4375.0,20.0262]
[1756993322100,7.4748,4375.2,4375.0,20.0262]
[1756993322300,7.2078,4375.2,4375.0,20.0262]
[1756993322500,0.267,4375.1,4375.0,20.0262]
[1756993322896,7.2078,4375.2,4375.0,20.0262]
[1756993323100,3.4748,4375.2,4375.0,20.0262]
[1756993323298,4.22857,4375.1,4375.0,20.0262]
[1756993323502,4.83142375,4375.1,4375.0,20.0262]
[1756993323699,3.2078,4375.2,4375.0,20.0262]
[1756993323901,3.2078,4375.2,4375.1,1.4755]
[1756993324098,0.267,4375.1,4375.0,20.0262]
[1756993324400,3.2078,4375.2,4375.1,1.4755]
[1756993324701,4.66146317,4376.6,4375.1,1.4755]
[1756993324702,3.2078,4375.8,4375.1,1.4755]
[1756993325003,3.2078,4375.8,4375.3,1.4755]
[1756993325296,3.2078,4375.8,4375.5,0.578]
[1756993325604,3.2078,4375.8,4375.7,1.4755]
[1756993326705,3.2078,4376.3,4376.1,1.4755]
[1756993326901,3.2078,4376.8,4376.2,0.266]
[1756993327104,3.2078,4376.8,4376.6,1.4755]
[1756993327295,3.2078,4376.8,4376.7,1.7415]
[1756993327801,1.5087,4376.7,4376.5,0.266]
[1756993328001,1.91986,4376.7,4376.6,0.266]
[1756993328407,0.41122,4376.1,4376.0,1.4755]
[1756993328706,0.41122,4376.1,4376.0,1.7415]
[1756993329305,0.41122,4376.1,4376.0,2.3195]
[1756993329600,3.2078,4376.9,4376.5,0.578]
[1756993329797,3.2078,4376.9,4376.6,1.7415]
[1756993329996,3.2078,4376.9,4376.7,1.4755]
[1756993330197,3.2078,4377.4,4377.0,0.578]
[1756993330401,3.2078,4377.4,4377.2,1.4755]
[1756993330607,3.2078,4377.4,4377.3,0.266]
[1756993330812,3.2078,4377.4,4377.3,1.7415]
[1756993330999,3.2078,4377.4,4377.3,1.4755]
[1756993331201,3.2078,4377.4,4377.3,1.7415]
[1756993331500,0.5261,4380.0,4377.3,1.7415]
[1756993331501,3.2078,4377.9,4377.6,1.4755]
[1756993331701,3.2078,4377.9,4377.8,1.4755]
[1756993332009,3.2078,4378.5,4377.8,1.4755]
[1756993332303,3.2078,4378.5,4377.9,0.266]
[1756993332602,3.2078,4378.5,4378.0,1.4983]
[1756993332807,3.2078,4378.5,4378.1,1.4983]
[1756993333010,3.2078,4378.5,4378.3,1.4983]
[1756993333502,1.4646,4378.4,4377.6,9.36756317]
[1756993333707,1.4646,4378.4,4377.7,0.265]
[1756993333907,1.4646,4378.4,4377.8,0.265]
[1756993334105,1.4646,4378.4,4377.0,3.7858]
[1756993334106,3.2078,4378.0,4377.0,3.7858]
[1756993334306,1.4646,4377.9,4377.0,4.7061]
[1756993334504,1.4646,4377.9,4377.1,0.265]
[1756993334807,3.2078,4378.0,4377.2,1.4983]
[1756993335704,3.2078,4378.0,4377.5,4.66146317]
[1756993335917,3.2078,4379.1,4377.9,1.4983]
[1756993336104,3.2078,4379.1,4378.5,5.25646317]
[1756993336405,1.4646,4378.4,4376.8,3.2078]
[1756993336609,1.4646,4378.4,4376.2,1.4983]
[1756993336610,1.4646,4377.4,4376.2,1.4983]
[1756993337412,1.4646,4376.9,4376.2,1.4983]
[1756993337804,1.4646,4376.9,4376.1,3.4728]
[1756993338005,0.4112,4376.3,4376.1,3.4728]
[1756993338307,1.4646,4376.2,4376.1,0.265]
[1756993338904,1.4646,4376.2,4375.2,0.03977281]
[1756993339109,1.4646,4375.8,4375.4,0.265]
[1756993339308,1.4646,4375.7,4375.4,0.265]
[1756993339504,1.4646,4375.8,4375.4,0.265]
[1756993339703,1.4646,4375.6,4375.4,0.265]
[1756993340200,3.2078,4375.9,4375.4,0.265]
[1756993340201,1.4646,4375.8,4375.4,0.265]
[1756993340402,3.2078,4375.9,4375.4,0.265]
[1756993340608,3.2078,4375.9,4375.5,1.4983]
[1756993341326,4.6724,4375.9,4375.5,1.4983]
[1756993341612,1.4646,4375.8,4375.4,0.265]
[1756993341808,1.2472,4375.5,4375.4,0.265]
[1756993342003,1.2472,4375.5,4375.4,1.7633]
[1756993342304,2.7118,4375.5,4375.0,23.234]
[1756993342509,1.2472,4375.5,4375.1,0.264]
[1756993342710,1.4646,4375.4,4375.1,0.264]
[1756993343105,1.2472,4375.5,4375.1,0.264]
[1756993343308,3.2078,4375.4,4375.0,20.0262]
[1756993343514,3.2078,4375.4,4375.0,20.2902]
[1756993343905,1.4646,4375.1,4375.0,20.2902]
[1756993344306,4.6724,4375.4,4375.0,20.2902]
[1756993344607,1.2472,4375.5,4375.1,1.72686]
[1756993344804,3.2078,4375.9,4375.2,1.4983]
[1756993345010,3.2078,4375.9,4375.3,0.264]
[1756993345700,1.4646,4375.8,4375.0,23.1875]
[1756993345902,1.4646,4375.8,4375.1,0.263]
[1756993346710,0.264,4376.7,4375.1,0.263]
[1756993346711,3.2078,4376.4,4375.7,3.2078]
[1756993347015,0.5821,4376.0,4375.8,0.264]
[1756993347206,2.0467,4376.0,4375.9,0.264]
[1756993347401,2.0467,4376.0,4375.1,3.24757445]
[1756993347708,1.4646,4375.9,4375.2,0.264]
[1756993347902,4.6724,4375.9,4375.2,0.264]
[1756993348411,0.5821,4375.5,4375.3,0.264]
[1756993348608,4.6724,4375.4,4375.3,0.264]
[1756993349506,1.4646,4375.3,4375.0,19.9797]
[1756993349713,1.4646,4375.3,4375.1,0.263]
[1756993349908,1.4646,4375.2,4375.0,15.2406]
[1756993350111,3.2078,4375.4,4375.0,15.2406]
[1756993350112,0.0668,4375.1,4375.0,15.2406]
[1756993350419,0.0668,4375.1,4375.0,15.1737]